Workbook

Sheet Лист5
I1: Budjet jarayonining ochiqligini ta’minlash maqsadida rasmiy veb-saytlarda ma’lumotlarni joylashtirish tartibi to‘g‘risidagi nizomga 5-ILOVA
A4: 2026-yil 1-iyul xolatiga Navoiy viloyat adliya boshqarmasi tomonidan kam baholi va tez eskiruvchi buyumlar xarid qilish uchun o‘tkazilgan tanlovlar (tendyerlar) va amalga oshirilgan davlat xaridlari to‘g‘risidagi
A5: MA’LUMOTLAR
A6: T/r | B6: Hisobot davri | C6: Xarid qilingan tovarlar va xizmatlar nomi | D6: Moliyalashtirish manbasi* | E6: Xarid jarayonini amalga oshirish turi | F6: Lot/shartnoma raqami | G6: Pudratchi to‘g‘risida ma’lumotlar | I6: Xarid qilinayotgan tovarlar (xizmatlar) o‘lchov birligi (imkoniyat darajasida) | J6: Xarid qilinayotgan tovarlar (xizmatlar) miqdori (hajmi) | K6: Bitim (shartnoma) bo‘yicha tovarlar (xizmatlar) bir birligi narxi (tarifi) | L6: Xarid qilingan tovarlar (xizmatlar) jami miqdori (hajmi) qiymati (ming so‘m)
G7: Pudratchi nomi | H7: Korxona STIRi
A8: 1 | B8: 1-chorak | C8: Tabiiy gaz | D8: budjet | E8: Yagona etkazib beruvchi | F8: №2130720070/9 Lot261100864378125 | G8: HUDUDGAZTA`MINOT AJ | H8: 306605769 | I8: м^3 | J8: =+L8/K8 -> 6184 | K8: 2000 | L8: 12368000
A9: =+A8+1 -> 2 | C9: Ichimlik suvi | D9: budjet | E9: Yagona etkazib beruvchi | F9: №G`az0013 Lot261190860274305 | G9: Навоий сув таминот МЧЖ | H9: 300024824 | I9: м^3 | J9: =+L9/K9 -> 350 | K9: 10080 | L9: 3528000
A10: =+A9+1 -> 3 | C10: Chiqindi tashish xizmati | D10: budjet | E10: O'RQ 684 | F10: №20/1 Lot261190910343522 | G10: Навоий вилояти Тоза худуд ДУК | H10: 304937104 | I10: xizmat | J10: =+L10/K10 -> 20 | K10: 95760 | L10: 1915200
A11: 4 | C11: hrm.gov.uz тизими орқали хизмат кўрсатиш | D11: budjet | E11: O'RQ 684 | F11: №12/41-hrm-2026 Lot261190860245154 | G11: DAVLAT AXBOROT TIZIMLARINI YARATISH VA QOLLAB QUVATLASH BOYICHA YAGONA INTEGR- | H11: 204118319 | I11: xizmat | J11: 12 | K11: 1000000 | L11: =+K11*J11 -> 12000000
A12: 5 | C12: Tabiiy gaz | D12: budjet | E12: O'RQ 684 | F12: №213056284/7 Lot261100864373359 | G12: HUDUDGAZTA`MINOT AJ | H12: 306605769 | I12: м^3 | J12: =+L12/K12 -> 14034 | K12: 2000 | L12: 28068000
A13: 6 | C13: Internet xizmati | D13: budjet | E13: O'RQ 684 | F13: №41075597 Lot261191100251839 | G13: O`ZBEKTELEKOM AJ | H13: 203366731 | I13: xizmat | J13: 12 | K13: =+L13/J13 -> 3502000 | L13: 42024000
A14: 7 | C14: Chiqindi tashish xizmati | D14: budjet | E14: O'RQ 684 | F14: №ST2026/08 Lot261190910246596 | G14: Стимул-Навоий Х.К | H14: 300522932 | I14: xizmat | J14: =+L14/K14 -> 30 | K14: 95760 | L14: 2872800
A15: 8 | C15: Elektr energiya | D15: budjetdan tashqari | E15: Yagona etkazib beruvchi | F15: №22/157 Boshqarma Lot261190860231358 | G15: Худудий электр тармоклари АЖ | H15: 306350099 | I15: kvt | J15: =+L15/K15 -> 82000 | K15: 1000 | L15: 82000000
C16: Elektr energiya | D16: budjetdan tashqari | E16: Yagona etkazib beruvchi | F16: №52/20 Nurota FHDY/1 Lot261190860230771 | G16: Худудий электр тармоклари АЖ | H16: 306350099 | I16: kvt | J16: =+L16/K16 -> 10700 | K16: 1000 | L16: 10700000
C17: Elektr energiya | D17: budjetdan tashqari | E17: Yagona etkazib beruvchi | F17: №53/124 Karmana/1 Lot261190860230645 | G17: Худудий электр тармоклари АЖ | H17: 306350099 | I17: kvt | J17: 60050 | K17: 1000 | L17: 60050000
C18: Elektr energiya | D18: budjetdan tashqari | E18: Yagona etkazib beruvchi | F18: №52/21 Nurota DXM/1 Lot261190860230657 | G18: Худудий электр тармоклари АЖ | H18: 306350099 | I18: kvt | J18: 19600 | K18: 1000 | L18: 19600000
C19: Elektr energiya | D19: budjetdan tashqari | E19: Yagona etkazib beruvchi | F19: №22/158 Navoiy sh. DXM/1 Lot261190860230724 | G19: Худудий электр тармоклари АЖ | H19: 306350099 | I19: kvt | J19: 55760 | K19: 1000 | L19: 55760000
C20: Elektr energiya | D20: budjetdan tashqari | E20: Yagona etkazib beruvchi | F20: №59/41 Uchquduq/1 Lot261190860230656 | G20: Худудий электр тармоклари АЖ | H20: 306350099 | I20: kvt | J20: 28950 | K20: 1000 | L20: 28950000
C21: Elektr energiya | D21: budjetdan tashqari | E21: Yagona etkazib beruvchi | F21: №54/2580 Xatirchi DXM/1 Lot261190860230652 | G21: Худудий электр тармоклари АЖ | H21: 306350099 | I21: kvt | J21: 29380 | K21: 1000 | L21: 29380000
C22: Elektr energiya | D22: budjetdan tashqari | E22: Yagona etkazib beruvchi | F22: №51/29 Konimeh DXM/1 Lot261190860230740 | G22: Худудий электр тармоклари АЖ | H22: 306350099 | I22: kvt | J22: 18200 | K22: 1000 | L22: 18200000
C23: Elektr energiya | D23: budjetdan tashqari | E23: Yagona etkazib beruvchi | F23: №56/57 Navbahor DXM/1 Lot261190860230711 | G23: Худудий электр тармоклари АЖ | H23: 306350099 | I23: kvt | J23: 27900 | K23: 1000 | L23: 27900000
C24: Elektr energiya | D24: budjetdan tashqari | E24: Yagona etkazib beruvchi | F24: №55/26 Qiziltape DXM/1 Lot261190860230969 | G24: Худудий электр тармоклари АЖ | H24: 306350099 | I24: kvt | J24: 60850 | K24: 1000 | L24: 60850000
C25: Elektr energiya | D25: budjetdan tashqari | E25: Yagona etkazib beruvchi | F25: №58/21 Tomdi DXM/1 Lot261190860230862 | G25: Худудий электр тармоклари АЖ | H25: 306350099 | I25: kvt | J25: 36000 | K25: 1000 | L25: 36000000
C26: Elektr energiya | D26: budjetdan tashqari | E26: Yagona etkazib beruvchi | F26: №52/8 G`ozg`on DXM/1 Lot261190860230929 | G26: Худудий электр тармоклари АЖ | H26: 306350099 | I26: kvt | J26: 42860 | K26: 1000 | L26: 42860000
C27: Elektr energiya | D27: budjetdan tashqari | E27: Yagona etkazib beruvchi | F27: №57/17 Zarafshon sh. DXM/1 Lot261190860230839 | G27: Худудий электр тармоклари АЖ | H27: 306350099 | I27: kvt | J27: 82000 | K27: 1000 | L27: 82000000
A28: =+A15+1 -> 9 | C28: Telefon xizmati | D28: budjetdan tashqari | E28: O'RQ 684 | F28: №NAV139 - 202601 34505310 Lot261191100244947 | G28: ООО Coscom | H28: 201788904 | I28: куб.м | J28: 12 | K28: =+L28/J28 -> 530000 | L28: 6360000
A29: 10 | C29: benzin | D29: budjetdan tashqari | E29: PF 259 | F29: №55 Lot261191380002041 | G29: Навоий нефть базасиМЧЖ | H29: 200002538 | I29: t | J29: =0.18*11 -> 1.98 | K29: =+L29/J29 -> 13807320 | L29: 27338493.6
A30: 11 | C30: Tabbiy siqilgan gaz (metan) | D30: budjetdan tashqari | E30: PF 259 | F30: №26 Nurota adliya Lot261191380002095 | G30: METAN GAZ NUROTA мчж | H30: 302356393 | I30: куб.м | J30: =+L30/K30 -> 2090 | K30: 5000 | L30: 10450000
A31: 12 | C31: Tabbiy siqilgan gaz (metan) | D31: budjetdan tashqari | E31: PF 259 | F31: №26 G`/N adliya Lot261191380002136 | G31: OOO SPUTNIK AVTO SERVIS | H31: 301601073 | I31: куб.м | J31: =+L31/K31 -> 4180 | K31: 5000 | L31: 20900000
A32: 13 | C32: Akkumulyator | D32: budjetdan tashqari | E32: Elektron do`kon | F32: №4050469 Lot261110084727222 | G32: SUNWAY COMPANY MCHJ | H32: 306042624 | I32: dona | J32: 1 | K32: 595775 | L32: =+K32*J32 -> 595775
A33: 14 | C33: Tabbiy siqilgan gaz (metan) | D33: budjetdan tashqari | E33: PF 259 | F33: №26 Konimex adliya Lot261191380002147 | G33: Karmana Alfa GaZ service МЧЖ | H33: 302189830 | I33: куб.м | J33: 2090 | K33: 4800 | L33: 10032000
A34: 15 | C34: Tabbiy siqilgan gaz (metan) | D34: budjetdan tashqari | E34: PF 259 | F34: №26 Uchquduq adliya Lot261191380002075 | G34: Uchquduq oil gaz invest МЧЖ | H34: 304966582 | I34: куб.м | J34: 2090 | K34: 5200 | L34: =+K34*J34 -> 10868000
A35: 16 | C35: Tabbiy siqilgan gaz (metan) | D35: budjetdan tashqari | E35: PF 259 | F35: №26 Xatirchi adliya Lot261191380002168 | G35: Мухаммад Али Кувончи МЧЖ | H35: 301293237 | I35: куб.м | J35: 2090 | K35: 4800 | L35: 10032000
A36: 17 | C36: Papka | D36: budjetdan tashqari | E36: Elektron do`kon | F36: №4059668 Lot261110084738691 | G36: ООО AZIZ-LAZIZ GOLDEN GROUP | H36: 308396499 | I36: dona | J36: 280 | K36: 11890 | L36: =+K36*J36 -> 3329200
A37: 18 | C37: Pochta xizmati | D37: budjetdan tashqari | E37: O'RQ 684 | F37: №30/26 Lot261191100249452 | G37: Давлат фельдегер хизмати Навоий булими | H37: 200003496 | I37: xizmat | J37: 12 | K37: =+L37/J37 -> 291666.6667 | L37: 3500000
A38: 19 | C38: Organayzer | D38: budjetdan tashqari | E38: Elektron do`kon | F38: №4059801 Lot261110084738780 | G38: CALIBRE POLYGRAPHY MCHJ | H38: 310877003 | I38: dona | J38: 26 | K38: =+L38/J38 -> 76300 | L38: 1983800
A39: 20 | C39: Tabbiy siqilgan gaz (metan) | D39: budjetdan tashqari | E39: PF 259 | F39: №26 Zarafshon Tomdi adliya Lot261191380009914 | G39: ООО АСКОМЖ-ЗАРАФШОН | H39: 305917515 | I39: куб.м | J39: =380*11 -> 4180 | K39: =+L39/J39 -> 5200 | L39: 21736000
A40: 21 | C40: Pochta xizmati | D40: budjetdan tashqari | E40: O'RQ 684 | F40: №24 Lot261190910291752 | G40: Республика махсус алока богламаси ДУК | H40: 201440547 | I40: xizmat | J40: 12 | K40: =+L40/J40 -> 9333333.333 | L40: 112000000
A41: 22 | C41: Tabiiy gaz | D41: budjetdan tashqari | E41: Yagona etkazib beruvchi | F41: №213056284/11 Lot261100864384399 | G41: HUDUDGAZTA`MINOT AJ | H41: 306605769 | I41: куб.м | J41: =+L41/K41 -> 48700 | K41: 2000 | L41: 97400000
A42: 23 | C42: Tabbiy siqilgan gaz (metan) | D42: budjetdan tashqari | E42: PF 259 | F42: №26 Qiziltepa adliya Lot261191380021709 | G42: Зарафшон авто газМЧЖ | H42: 302025267 | I42: куб.м | J42: =190*11 -> 2090 | K42: =+L42/J42 -> 4900 | L42: 10241000
A43: 24 | C43: Tabbiy siqilgan gaz (metan) | D43: budjetdan tashqari | E43: PF 259 | F43: №9/26 Lot261191380021674 | G43: Зарафшон Файз Оил МЧЖ | H43: 301711048 | I43: куб.м | J43: =+L43/K43 -> 10450 | K43: 4950 | L43: 51727500
A44: 25 | C44: Chiqindi tashish xizmati | D44: budjetdan tashqari | E44: O'RQ 684 | F44: №26X Lot261190910344491 | G44: Мироншох комфорт сервис МЧЖ | H44: 207164728 | I44: xizmat | J44: =+L44/K44 -> 12 | K44: 95760 | L44: 1149120
A45: 26 | C45: issiq suv va issiqlik energiyasi | D45: budjetdan tashqari | E45: Yagona etkazib beruvchi | F45: №T2/300-26/1 Lot261190860273701 | G45: Иссиклик манбаи ДУК Навоий филиали | H45: 307122468 | I45: dona | J45: =+L45/K45 -> 164 | K45: 604800 | L45: 99187200
A46: 27 | C46: GPS xizmati | D46: budjetdan tashqari | E46: Elektron do`kon | F46: №4464076 Lot261111145181169 | G46: NAVOIY AKT AVTOMATIKA МЧЖ | H46: 304521187 | I46: dona | J46: 6 | K46: =+L46/J46 -> 716000 | L46: 4296000
A47: 28 | C47: Elektr energiya | D47: budjetdan tashqari | E47: Yagona etkazib beruvchi | F47: №22/636 Arxiv/1 Lot261190860231249 | G47: Худудий электр тармоклари АЖ | H47: 306350099 | I47: dona | J47: =+L47/K47 -> 48710 | K47: 1000 | L47: 48710000
A48: 29 | C48: Qog'oz A4 | D48: budjetdan tashqari | E48: Elektron do`kon | F48: №4034592 Lot261110084709354 | G48: ООО KANS MIR NAVOIY | H48: 308067400 | I48: pachka | J48: 50 | K48: 38900 | L48: =+K48*J48 -> 1945000
A49: 30 | C49: konditsioner ta'mirlash | D49: budjetdan tashqari | E49: Elektron do`kon | F49: №4035898 Lot261111144710715 | G49: Навоий меридиан бусинесс | H49: 308550315 | I49: dona | J49: 1 | K49: 7800000 | L49: =+K49*J49 -> 7800000
A50: 31 | C50: Tabiiy gaz | D50: budjetdan tashqari | E50: Yagona etkazib beruvchi | F50: №213052558/6 Lot261100864373352 | G50: HUDUDGAZTA`MINOT AJ | H50: 306605769 | I50: куб.м | J50: =+L50/K50 -> 16000 | K50: 2000 | L50: 32000000
A51: 32 | C51: Internet xizmati | D51: budjetdan tashqari | E51: O'RQ 684 | F51: №40777058 Lot261191100251788 | G51: O`ZBEKTELEKOM AJ | H51: 203366731 | I51: xizmat | J51: 12 | K51: =+L51/J51 -> 915000 | L51: 10980000
A52: 33 | C52: Papka | D52: budjetdan tashqari | E52: Elektron do`kon | F52: №4059674 Lot261110084738705 | G52: ООО AZIZ-LAZIZ GOLDEN GROUP | H52: 308396499 | I52: xizmat | J52: 240 | K52: =+L52/J52 -> 11499 | L52: 2759760
A53: 34 | C53: Organayzer | D53: budjetdan tashqari | E53: Elektron do`kon | F53: №4059822 Lot261110084738794 | G53: CALIBRE POLYGRAPHY MCHJ | H53: 310877003 | I53: dona | J53: 31 | K53: =+L53/J53 -> 76300 | L53: 2365300
A54: 35 | C54: Tabiiy gaz | D54: budjetdan tashqari | E54: Yagona etkazib beruvchi | F54: №213080416 Lot261100864380692 | G54: HUDUDGAZTA`MINOT AJ | H54: 306605769 | I54: куб.м | J54: =+L54/K54 -> 11000 | K54: 2000 | L54: 22000000
A55: 36 | C55: Isitish tizimina ta'mirlash | D55: budjetdan tashqari | E55: Elektron do`kon | F55: №4120433 Lot261111144800455 | G55: Навоий меридиан бусинесс | H55: 308550315 | I55: dona | J55: 1 | K55: 3000000 | L55: 3000000
A56: 37 | C56: panjara yasash xizmati | D56: budjetdan tashqari | E56: Elektron do`kon | F56: №4271629 Lot261111144972713 | G56: Шомурод х/к | H56: 200001174 | I56: xizmat | J56: 3 | K56: =+L56/J56 -> 1950000 | L56: 5850000
A57: 38 | C57: Qog'oz A4 | D57: budjetdan tashqari | E57: Elektron do`kon | F57: №4034593 Lot261110084709345 | G57: ООО KANS MIR NAVOIY | H57: 308067400 | I57: pachka | J57: 197 | K57: =+L57/J57 -> 38900 | L57: 7663300
A58: 39 | C58: Tabiiy gaz | D58: budjetdan tashqari | E58: Yagona etkazib beruvchi | F58: №213013410/8 Lot261100864373350 | G58: HUDUDGAZTA`MINOT AJ | H58: 306605769 | I58: куб.м | J58: =+L58/K58 -> 22000 | K58: 2000 | L58: 44000000
A59: 40 | C59: Tabiiy gaz | D59: budjetdan tashqari | E59: Yagona etkazib beruvchi | F59: №213080039/5 Lot261100864373357 | G59: HUDUDGAZTA`MINOT AJ | H59: 306605769 | I59: куб.м | J59: =+L59/K59 -> 15000 | K59: 2000 | L59: 30000000
A60: 41 | C60: Tabiiy gaz | D60: budjetdan tashqari | E60: Yagona etkazib beruvchi | F60: №213042072/11 Lot261100864373356 | G60: HUDUDGAZTA`MINOT AJ | H60: 306605769 | I60: куб.м | J60: 15000 | K60: 2000 | L60: 30000000
A61: 42 | C61: Tabiiy gaz | D61: budjetdan tashqari | E61: Yagona etkazib beruvchi | F61: №2130620090/7 Lot261100864373355 | G61: HUDUDGAZTA`MINOT AJ | H61: 306605769 | I61: куб.м | J61: 27000 | K61: 2000 | L61: 54000000
A62: 43 | C62: Tabiiy gaz | D62: budjetdan tashqari | E62: Yagona etkazib beruvchi | F62: №213051715/6 Lot261100864373351 | G62: HUDUDGAZTA`MINOT AJ | H62: 306605769 | I62: куб.м | J62: 29000 | K62: 2000 | L62: 58000000
A63: 44 | C63: konditsioner ta'mirlash | D63: budjetdan tashqari | E63: Elektron do`kon | F63: №4044068 Lot261111144720567 | G63: Навоий меридиан бусинесс | H63: 308550315 | I63: xizmat | J63: 4 | K63: =+L63/J63 -> 2450000 | L63: 9800000
A64: 45 | C64: Internet xizmati | D64: budjetdan tashqari | E64: O'RQ 684 | F64: №1905732800 Lot261191100251826 | G64: O`ZBEKTELEKOM AJ | H64: 203366731 | I64: xizmat | J64: 12 | K64: =+L64/J64 -> 11186000 | L64: 134232000
A65: 46 | C65: Akkumulyator | D65: budjetdan tashqari | E65: Elektron do`kon | F65: №4050468 Lot261110084727229 | G65: SUNWAY COMPANY MCHJ | H65: 306042624 | I65: dona | J65: 1 | K65: 545975 | L65: 545975
A66: 47 | C66: Tabbiy siqilgan gaz (metan) | D66: budjetdan tashqari | E66: PF 259 | F66: №26 G`/N DXM Lot261191380002513 | G66: OOO SPUTNIK AVTO SERVIS | H66: 301601073 | I66: куб.м | J66: =+L66/K66 -> 3300 | K66: 5000 | L66: 16500000
A67: 48 | C67: Tabbiy siqilgan gaz (metan) | D67: budjetdan tashqari | E67: PF 259 | F67: №26 Nurota DXM Lot261191380002522 | G67: METAN GAZ NUROTA мчж | H67: 302356393 | I67: куб.м | J67: =+L67/K67 -> 1650 | K67: 5000 | L67: 8250000
A68: 49 | C68: Tabbiy siqilgan gaz (metan) | D68: budjetdan tashqari | E68: PF 259 | F68: №26 Uchquduq DXM Lot261191380002529 | G68: Uchquduq oil gaz invest МЧЖ | H68: 304966582 | I68: куб.м | J68: =+L68/K68 -> 1650 | K68: 5200 | L68: 8580000
A69: 50 | C69: Tabbiy siqilgan gaz (metan) | D69: budjetdan tashqari | E69: PF 259 | F69: №26 Zarafshon DXM Lot261191380002521 | G69: ООО АСКОМЖ-ЗАРАФШОН | H69: 305917515 | I69: куб.м | J69: =+L69/K69 -> 1650 | K69: 5200 | L69: 8580000
A70: 51 | C70: Tabbiy siqilgan gaz (metan) | D70: budjetdan tashqari | E70: PF 259 | F70: №26 Xatirchi DXM Lot261191380002503 | G70: Мухаммад Али Кувончи МЧЖ | H70: 301293237 | I70: куб.м | J70: =+L70/K70 -> 1650 | K70: 4800 | L70: 7920000
A71: 52 | C71: Ichimlik suv va oqova suv | D71: budjetdan tashqari | E71: Yagona etkazib beruvchi | F71: №210900042 Lot261190860273354 | G71: Навоий сув таминот МЧЖ | H71: 300024824 | I71: куб.м | J71: =+L71/K71 -> 2400 | K71: 16800 | L71: 40320000
A72: 53 | C72: Ichimlik suv va oqova suv | D72: budjetdan tashqari | E72: Yagona etkazib beruvchi | F72: №1712216225413 Lot261190860271788 | G72: Навоий сув таминот МЧЖ | H72: 300024824 | I72: куб.м | J72: =+L72/K72 -> 485 | K72: 16800 | L72: 8148000
A73: 54 | C73: Ichimlik suv | D73: budjetdan tashqari | E73: Yagona etkazib beruvchi | F73: №210700065 Lot261190860271051 | G73: Навоий сув таминот МЧЖ | H73: 300024824 | I73: куб.м | J73: =+L73/K73 -> 200 | K73: 10080 | L73: 2016000
A74: 55 | C74: Ichimlik suv va oqova suv | D74: budjetdan tashqari | E74: Yagona etkazib beruvchi | F74: №211100022 Lot261190860271592 | G74: Навоий сув таминот МЧЖ | H74: 300024824 | I74: куб.м | J74: =+L74/K74 -> 110 | K74: 16800 | L74: 1848000
A75: 56 | C75: Ichimlik suv | D75: budjetdan tashqari | E75: Yagona etkazib beruvchi | F75: №210800005 Lot261190860271908 | G75: Навоий сув таминот МЧЖ | H75: 300024824 | I75: куб.м | J75: =+L75/K75 -> 720 | K75: 10080 | L75: 7257600
A76: 57 | C76: Ichimlik suv | D76: budjetdan tashqari | E76: Yagona etkazib beruvchi | F76: №210500006 Lot261190860272108 | G76: Навоий сув таминот МЧЖ | H76: 300024824 | I76: куб.м | J76: =+L76/K76 -> 150 | K76: 10080 | L76: 1512000
A77: 58 | C77: Ichimlik suv va oqova suv | D77: budjetdan tashqari | E77: Yagona etkazib beruvchi | F77: №210300062 Lot261190860272610 | G77: Навоий сув таминот МЧЖ | H77: 300024824 | I77: куб.м | J77: =+L77/K77 -> 300 | K77: 16800 | L77: 5040000
A78: 59 | C78: kir yuvish kukuni | D78: budjetdan tashqari | E78: Elektron do`kon | F78: №4059308 Lot261110084738408 | G78: ООО KANS MIR NAVOIY | H78: 308067400 | I78: dona | J78: 55 | K78: =+L78/J78 -> 3700 | L78: 203500
A79: 60 | C79: chistol | D79: budjetdan tashqari | E79: Elektron do`kon | F79: №4059298 Lot261110084738471 | G79: ООО KANS MIR NAVOIY | H79: 308067400 | I79: dona | J79: 55 | K79: =+L79/J79 -> 5200 | L79: 286000
A80: 61 | C80: suyuq sovun | D80: budjetdan tashqari | E80: Elektron do`kon | F80: №4059295 Lot261111144738340 | G80: ООО KANS MIR NAVOIY | H80: 308067400 | I80: dona | J80: 55 | K80: =+L80/J80 -> 9995 | L80: 549725
A81: 62 | C81: pol latta | D81: budjetdan tashqari | E81: Elektron do`kon | F81: №4059279 Lot261110084738257 | G81: JAVA COOPERATION MCHJ | H81: 311469604 | I81: dona | J81: 55 | K81: =+L81/J81 -> 8999 | L81: 494945
A82: 63 | C82: xlor | D82: budjetdan tashqari | E82: Elektron do`kon | F82: №4059605 Lot261110084738641 | G82: YTT Bahodirov Behzod Bahromjon ugli | H82: 50209007050024/ | I82: dona | J82: 50 | K82: =+L82/J82 -> 12222 | L82: 611100
A83: 64 | C83: Tabiiy gaz | D83: budjetdan tashqari | E83: Yagona etkazib beruvchi | F83: №213032418/8 Lot261100864378126 | G83: HUDUDGAZTA`MINOT AJ | H83: 306605769 | I83: куб.м | J83: =+L83/K83 -> 16000 | K83: 2000 | L83: 32000000
A84: 65 | C84: Tabiiy gaz | D84: budjetdan tashqari | E84: Yagona etkazib beruvchi | F84: №2130720074/7 Lot261100864378126 | G84: HUDUDGAZTA`MINOT AJ | H84: 306605769 | I84: куб.м | J84: 15000 | K84: 2000 | L84: 30000000
A85: 66 | C85: Papka | D85: budjetdan tashqari | E85: Elektron do`kon | F85: №6511006.1.1 Lot262110086511006 | G85: CARTIVO MCHJ | H85: 312148267 | I85: dona | J85: 220 | K85: =+L85/J85 -> 13480 | L85: 2965600
A86: 67 | C86: Tabbiy siqilgan gaz (metan) | D86: budjetdan tashqari | E86: PF 259 | F86: №26 Konumex DXM Lot261191380009899 | G86: Karmana Alfa GaZ service МЧЖ | H86: 302189830 | I86: куб.м | J86: =+L86/K86 -> 1650 | K86: 4800 | L86: 7920000
A87: 68 | C87: GPS xizmati | D87: budjetdan tashqari | E87: Elektron do`kon | F87: №4076422 Lot261111144755591 | G87: NAVOIY AKT AVTOMATIKA МЧЖ | H87: 304521187 | I87: xizmat | J87: 15 | K87: =+L87/J87 -> 360000 | L87: 5400000
A88: 69 | C88: pletka terish xizmati | D88: budjetdan tashqari | E88: Elektron do`kon | F88: №6569343.1.1 Lot262111146569343 | G88: ООО SPRINTER SB | H88: 308348138 | I88: xizmat | J88: 1 | K88: 19342000 | L88: 19342000
A89: 70 | C89: Tabbiy siqilgan gaz (metan) | D89: budjetdan tashqari | E89: PF 259 | F89: №26 Qiziltepa DXM Lot261191380021700 | G89: Зарафшон авто газМЧЖ | H89: 302025267 | I89: куб.м | J89: =+L89/K89 -> 1650 | K89: 4900 | L89: 8085000
A90: 71 | C90: Tabbiy siqilgan gaz (metan) | D90: budjetdan tashqari | E90: PF 259 | F90: №26 Karmana DXM Lot261191380021684 | G90: Зарафшон Файз Оил МЧЖ | H90: 301711048 | I90: куб.м | J90: =+L90/K90 -> 1650 | K90: 4950 | L90: 8167500
A91: 72 | C91: Tabbiy siqilgan gaz (metan) | D91: budjetdan tashqari | E91: PF 259 | F91: №26 Tomdi DXM Lot261191380021694 | G91: ZARAFSHON GLASS МЧЖ | H91: 305063535 | I91: куб.м | J91: =+L91/K91 -> 1650 | K91: 5200 | L91: 8580000
A92: 73 | C92: LED panel | D92: budjetdan tashqari | E92: Elektron do`kon | F92: №B1219713 Lot26311125020602 | G92: DJIZZAKH MAXSUS TAMINOT XK | H92: 309352458 | I92: dona | J92: 50 | K92: =+L92/J92 -> 78000 | L92: 3900000
A93: 74 | C93: LED panel | D93: budjetdan tashqari | E93: Elektron do`kon | F93: №B1219712 Lot26311125020628 | G93: DJIZZAKH MAXSUS TAMINOT XK | H93: 309352458 | I93: dona | J93: 200 | K93: =+L93/J93 -> 74000 | L93: 14800000
A94: 75 | C94: LED panel | D94: budjetdan tashqari | E94: Elektron do`kon | F94: №B1219715 Lot26311125020650 | G94: OOO LED ENERGY PRODUCT | H94: 307848821 | I94: dona | J94: 50 | K94: =+L94/J94 -> 55000 | L94: 2750000
A95: 76 | C95: LED panel | D95: budjetdan tashqari | E95: Elektron do`kon | F95: №B1219721 Lot26311125020670 | G95: OOO LED ENERGY PRODUCT | H95: 307848821 | I95: dona | J95: 50 | K95: =+L95/J95 -> 65000 | L95: 3250000
A96: 77 | C96: LED panel | D96: budjetdan tashqari | E96: Elektron do`kon | F96: №B1219734 Lot26311125020685 | G96: OOO LED ENERGY PRODUCT | H96: 307848821 | I96: dona | J96: 50 | K96: =+L96/J96 -> 40000 | L96: 2000000
A97: 78 | C97: chek lenta | D97: budjetdan tashqari | E97: Elektron do`kon | F97: №4123196 Lot261110084803657 | G97: YATT MELIQO?ZIYEV Y.B | H97: 30110976950023/ | I97: dona | J97: 100 | K97: =+L97/J97 -> 44444 | L97: 4444400
A98: 79 | C98: Kartridj | D98: budjetdan tashqari | E98: Elektron do`kon | F98: №6639051.1.1 Lot262110086639051 | G98: ЧП Gamma Toner Technology | H98: 207102130 | I98: dona | J98: 10 | K98: =+L98/J98 -> 224000 | L98: 2240000
A99: 80 | C99: LED panel | D99: budjetdan tashqari | E99: Elektron do`kon | F99: №B1220859 Lot26311125022327 | G99: DJIZZAKH MAXSUS TAMINOT XK | H99: 309352458 | I99: dona | J99: 60 | K99: =+L99/J99 -> 37000 | L99: 2220000
A100: 81 | C100: pechat asosi | D100: budjetdan tashqari | E100: Elektron do`kon | F100: №4125037 Lot261110084805823 | G100: BESH-SHOP MCHJ | H100: 312720940 | I100: dona | J100: 200 | K100: =+L100/J100 -> 40500 | L100: 8100000
A101: 82 | C101: LED panel | D101: budjetdan tashqari | E101: Elektron do`kon | F101: №B1221027 Lot26311125022546 | G101: TRENO INTERNATIONAL MCHJ | H101: 312408504 | I101: dona | J101: 180 | K101: =+L101/J101 -> 35500 | L101: 6390000
A102: 83 | C102: kommunal xizmat | D102: budjetdan tashqari | E102: PF 259 | F102: №10/2 Lot261191360023273 | G102: XURSHID KOMMUNAL PROGRESS MAS`ULIYATI CHEKLANGAN JAMIYAT | H102: 308568315 | I102: xizmat | J102: 12 | K102: =+L102/J102 -> 732000 | L102: 8784000
A103: 84 | C103: kommunal xizmat | D103: budjetdan tashqari | E103: PF 259 | F103: №25 Lot261191360023263 | G103: XUMO ZILOLA BARXAYOT PLYUS MCHJ | H103: 309571842 | I103: xizmat | J103: 12 | K103: =+L103/J103 -> 1020000 | L103: 12240000
A104: 85 | C104: avtotransport ta'mirlash xizmati | D104: budjetdan tashqari | E104: Elektron do`kon | F104: №4141473 Lot261110084824109 | G104: DETAILES MCHJ | H104: 312178903 | I104: xizmat | J104: 1 | K104: =+L104/J104 -> 995000 | L104: 995000
A105: 86 | C105: avtomobil shinasi | D105: budjetdan tashqari | E105: Elektron do`kon | F105: №4159893 Lot261110084844710 | G105: OQAR OTA HAMKOR | H105: 308964456 | I105: dona | J105: 4 | K105: =+L105/J105 -> 470001 | L105: 1880004
A106: 87 | C106: obuna xizmati | D106: budjetdan tashqari | E106: O'RQ 684 | F106: №SR-26/01 Lot261191370030428 | G106: АДОЛАТ нашриёти ДК | H106: 201453166 | I106: xizmat | J106: 430 | K106: =+L106/J106 -> 412000 | L106: 177160000
A107: 88 | C107: lampa | D107: budjetdan tashqari | E107: Elektron do`kon | F107: №4163201 Lot261110084847773 | G107: ОООFikrlar bulogi | H107: 206773524 | I107: dona | J107: 16 | K107: =+L107/J107 -> 245000 | L107: 3920000
A108: 89 | C108: Elektron USB-kalit | D108: budjetdan tashqari | E108: Elektron do`kon | F108: №6701246.1.1 Lot262110086701246 | G108: BESH-SHOP MCHJ | H108: 312720940 | I108: dona | J108: 10000 | K108: =+L108/J108 -> 31400 | L108: 314000000
A109: 90 | C109: avtotransport ta'mirlash xizmati | D109: budjetdan tashqari | E109: Elektron do`kon | F109: №4243903 Lot261110084934245 | G109: YTT XUSANOV AVAZBEK OBIDJON O?G?LI | H109: 51403075040041/ | I109: xizmat | J109: 1 | K109: =+L109/J109 -> 12000000 | L109: 12000000
A110: 91 | C110: malaka oshirish o'quv kursi | D110: budjetdan tashqari | E110: Elektron do`kon | F110: №4037982 Lot261110084713429 | G110: Уз.Р.Бош прокуратура академияси | H110: 200838518 | I110: xizmat | J110: 1 | K110: 1615040 | L110: =+K110*J110 -> 1615040
A111: 92 | C111: poligrafiya xizmati | D111: budjetdan tashqari | E111: Elektron do`kon | F111: №4040770 Lot261110084716728 | G111: ИП NASRIYEV JAMOLIDDIN XUSNIDDINOVICH | H111: 30905850220035/ | I111: xizmat | J111: 100 | K111: =+L111/J111 -> 2000 | L111: 200000
A112: 93 | C112: malaka oshirish o'quv kursi | D112: budjetdan tashqari | E112: Elektron do`kon | F112: №4044310 Lot261110084720854 | G112: Уз.Р.Бош прокуратура академияси | H112: 200838518 | I112: xizmat | J112: 1 | K112: =+L112/J112 -> 86520 | L112: 86520
A113: 94 | C113: malaka oshirish o'quv kursi | D113: budjetdan tashqari | E113: Elektron do`kon | F113: №4044301 Lot261110084720844 | G113: Уз.Р.Бош прокуратура академияси | H113: 200838518 | I113: xizmat | J113: 135 | K113: =+L113/J113 -> 57680 | L113: 7786800
A114: 95 | C114: Ijro.gov.uz | D114: budjetdan tashqari | E114: O'RQ 684 | F114: №6912-2026/IJRO Lot261190860249096 | G114: UNICON-SOFT МЧЖ | H114: 305109680 | I114: xizmat | J114: 12 | K114: =+L114/J114 -> 298000 | L114: 3576000
A115: 96 | C115: programmalash xizmati | D115: budjetdan tashqari | E115: Elektron do`kon | F115: №4057190 Lot261110084735894 | G115: ЯТТ NABIXONOVA MUXLISAXON MUZAFARXON QIZI | H115: 40907995970034/ | I115: xizmat | J115: 1 | K115: =+L115/J115 -> 2450000 | L115: 2450000
A116: 97 | C116: Qog'oz A4 | D116: budjetdan tashqari | E116: Elektron do`kon | F116: №4057181 Lot261110084735881 | G116: ООО KANS MIR NAVOIY | H116: 308067400 | I116: dona | J116: 50 | K116: =+L116/J116 -> 38900 | L116: 1945000
A117: 98 | C117: kir yuvish kukuni | D117: budjetdan tashqari | E117: Elektron do`kon | F117: №4059309 Lot261110084738400 | G117: ООО KANS MIR NAVOIY | H117: 308067400 | I117: dona | J117: 50 | K117: =+L117/J117 -> 3700 | L117: 185000
A118: 99 | C118: chistol | D118: budjetdan tashqari | E118: Elektron do`kon | F118: №4059297 Lot261110084738466 | G118: ООО KANS MIR NAVOIY | H118: 308067400 | I118: dona | J118: 50 | K118: =+L118/J118 -> 5200 | L118: 260000
A119: 100 | C119: suyuq sovun | D119: budjetdan tashqari | E119: Elektron do`kon | F119: №4059296 Lot261111144738331 | G119: ООО KANS MIR NAVOIY | H119: 308067400 | I119: dona | J119: 50 | K119: =+L119/J119 -> 9995 | L119: 499750
A120: 101 | C120: tualetnaya bumaga | D120: budjetdan tashqari | E120: Elektron do`kon | F120: №4059294 Lot261111144738446 | G120: ООО KANS MIR NAVOIY | H120: 308067400 | I120: dona | J120: 50 | K120: =+L120/J120 -> 23995 | L120: 1199750
A121: 102 | C121: qog'oz sochiq | D121: budjetdan tashqari | E121: Elektron do`kon | F121: №4059293 Lot261111144738195 | G121: ООО KANS MIR NAVOIY | H121: 308067400 | I121: upakovka | J121: 20 | K121: =+L121/J121 -> 13995 | L121: 279900
A122: 103 | C122: zamazka | D122: budjetdan tashqari | E122: Elektron do`kon | F122: №4059281 Lot261110084738568 | G122: ООО KANS MIR NAVOIY | H122: 308067400 | I122: dona | J122: 20 | K122: =+L122/J122 -> 8700 | L122: 174000
A123: =+A122+1 -> 104 | C123: pol latta | D123: budjetdan tashqari | E123: Elektron do`kon | F123: №4059278 Lot261110084738241 | G123: JAVA COOPERATION MCHJ | H123: 311469604 | I123: dona | J123: 50 | K123: =+L123/J123 -> 8999 | L123: 449950
A124: 105 | C124: xlor | D124: budjetdan tashqari | E124: Elektron do`kon | F124: №4059616 Lot261110084738633 | G124: YTT Bahodirov Behzod Bahromjon ugli | H124: 50209007050024/ | I124: dona | J124: 50 | K124: =+L124/J124 -> 12222 | L124: 611100
A125: 106 | C125: qalam | D125: budjetdan tashqari | E125: Elektron do`kon | F125: №4059733 Lot261110084738756 | G125: ООО KANS MIR NAVOIY | H125: 308067400 | I125: dona | J125: 100 | K125: =+L125/J125 -> 950 | L125: 95000
A126: 107 | C126: Kabel pitaniya | D126: budjetdan tashqari | E126: Elektron do`kon | F126: №4071788 Lot261110084753043 | G126: Навоий меридиан бусинесс | H126: 308550315 | I126: M | J126: 70 | K126: =+L126/J126 -> 3400 | L126: 238000
A127: 108 | C127: rubilnik | D127: budjetdan tashqari | E127: Elektron do`kon | F127: №4072340 Lot261110084753621 | G127: UNIVERSAL TEXNO SIASH MCHJ | H127: 310799124 | I127: dona | J127: 1 | K127: 300000 | L127: 300000
A128: 109 | C128: gofra | D128: budjetdan tashqari | E128: Elektron do`kon | F128: №4072514 Lot261110084753789 | G128: ЯККА ТАРТИБДАГИ ТАДБИРКОР | H128: 41201872330041/ | I128: M | J128: 70 | K128: =+L128/J128 -> 2955 | L128: 206850
A129: 110 | C129: Kuchlanishi 1 kV dan oshmaydigan elektr zanjiri uzgichi | D129: budjetdan tashqari | E129: Elektron do`kon | F129: №4072570 Lot261110084753867 | G129: PRO ENERGY CONTROL MCHJ | H129: 307432873 | I129: dona | J129: 1 | K129: 180000 | L129: 180000
A130: 111 | C130: metal qutti | D130: budjetdan tashqari | E130: Elektron do`kon | F130: №4074026 Lot261110084755617 | G130: ЯККА ТАРТИБДАГИ ТАДБИРКОР | H130: 41201872330041/ | I130: dona | J130: 1 | K130: 335000 | L130: 335000
A131: 112 | C131: foto bumaga | D131: budjetdan tashqari | E131: Elektron do`kon | F131: №4074380 Lot261110084756003 | G131: Канц-Маркет тижорат корхонаси | H131: 204387372 | I131: pachka | J131: 3 | K131: 150000 | L131: 450000
A132: 113 | C132: temir profil | D132: budjetdan tashqari | E132: Elektron do`kon | F132: №B1213926 Lot26311125011640 | G132: OKSA MCHJ | H132: 312614953 | I132: M | J132: 10 | K132: =+L132/J132 -> 160000 | L132: 1600000
A133: 114 | C133: marker | D133: budjetdan tashqari | E133: Elektron do`kon | F133: №4081765 Lot261110084764248 | G133: BROSER GROUP O1 MCHJ | H133: 312619638 | I133: komp | J133: 20 | K133: =+L133/J133 -> 13000 | L133: 260000
A134: 115 | C134: programmalash xizmati | D134: budjetdan tashqari | E134: Elektron do`kon | F134: №4091258 Lot261111144776336 | G134: ЯТТ Тошмуродова Замира Нурмановна | H134: 42406712350035/ | I134: xizmat | J134: 1 | K134: 1036000 | L134: 1036000
A135: 116 | C135: toner | D135: budjetdan tashqari | E135: Elektron do`kon | F135: №4123267 Lot261110084803761 | G135: ЧП Gamma Toner Technology | H135: 207102130 | I135: xizmat | J135: 20 | K135: =+L135/J135 -> 60000 | L135: 1200000
A136: 117 | C136: poligrafiya xizmati | D136: budjetdan tashqari | E136: Elektron do`kon | F136: №4126519 Lot261111144805370 | G136: Ходжиев Намозбек Ниёзович ЯТТ | H136: 453447741 | I136: dona | J136: 30 | K136: =+L136/J136 -> 150000 | L136: 4500000
A137: 118 | C137: avtotransport ta'mirlash xizmati | D137: budjetdan tashqari | E137: Elektron do`kon | F137: №4141474 Lot261110084824091 | G137: DETAILES MCHJ | H137: 312178903 | I137: xizmat | J137: 1 | K137: 3900000 | L137: 3900000
A138: 119 | C138: poligrafiya xizmati | D138: budjetdan tashqari | E138: Elektron do`kon | F138: №4147155 Lot261111144831078 | G138: ЧПPrint Copying Services | H138: 303401123 | I138: xizmat | J138: 15 | K138: =+L138/J138 -> 35000 | L138: 525000
A139: 120 | C139: avtotransport ta'mirlash xizmati | D139: budjetdan tashqari | E139: Elektron do`kon | F139: №4172974 Lot261111144860142 | G139: BEST AVTO MOTOR SERVIS хусусий корхонаси | H139: 305938473 | I139: xizmat | J139: 1 | K139: 4412500 | L139: 4412500
A140: 121 | C140: avto shina | D140: budjetdan tashqari | E140: Elektron do`kon | F140: №4182243 Lot261110084870875 | G140: YTT AMONOV SHOHZOD SHOKIR O?G?LI | H140: 31101995290024/ | I140: xizmat | J140: 4 | K140: =+L140/J140 -> 558000 | L140: 2232000
A141: 122 | C141: Avtotransport vositasini yoqilg'i sarfina aniqlash | D141: budjetdan tashqari | E141: Elektron do`kon | F141: №4221720 Lot261110084915684 | G141: DELTA SERVICE NAVOI MCHJ | H141: 310730946 | I141: xizmat | J141: 1 | K141: 444950 | L141: 444950
A142: 123 | C142: Akkumulyator | D142: budjetdan tashqari | E142: Elektron do`kon | F142: №4298837 Lot261110084999973 | G142: SUNWAY COMPANY MCHJ | H142: 306042624 | I142: dona | J142: 2 | K142: =+L142/J142 -> 640975 | L142: 1281950
A143: 124 | B143: 2-chorak | C143: jalyuzi | D143: budjetdan tashqari | E143: Elektron do`kon | F143: №7206521.1.1 Lot262110087206521 | G143: ЯККА ТАРТИБДАГИ ТАДБИРКОР | H143: 50509075780073/ | I143: m2 | J143: 17 | K143: =+L143/J143 -> 148000 | L143: 2516000
A144: 125 | C144: Tabiiy gaz | D144: budjet | E144: Yagona etkazib beruvchi | F144: №6/021/4 Lot261100864410608 | G144: HUDUDGAZTA`MINOT AJ | H144: 306605769 | I144: м^3 | J144: =+L144/K144 -> 15000 | K144: 2000 | L144: 30000000
A145: 126 | C145: skotch | D145: budjetdan tashqari | E145: Elektron do`kon | F145: №4457437 Lot261110085176455 | G145: ООО KANS MIR NAVOIY | H145: 308067400 | I145: dona | J145: 100 | K145: =+L145/J145 -> 23990 | L145: 2399000
A146: 127 | C146: kley | D146: budjetdan tashqari | E146: Elektron do`kon | F146: №4457433 Lot261110085176447 | G146: JAVA COOPERATION MCHJ | H146: 311469604 | I146: dona | J146: 20 | K146: =+L146/J146 -> 8998 | L146: 179960
A147: 128 | C147: Qog'oz A4 | D147: budjetdan tashqari | E147: Elektron do`kon | F147: №4308628 Lot261111145012545 | G147: WORLD KANS MIR MCHJ | H147: 312718174 | I147: upakovka | J147: 50 | K147: =+L147/J147 -> 41800 | L147: 2090000
A148: 129 | C148: Mebel tamirlash xizmati | D148: budjetdan tashqari | E148: Elektron do`kon | F148: №4349157 Lot261111145053971 | G148: Навоий вил. Формула уютамчж | H148: 301183666 | I148: xizmat | J148: 18 | K148: =+L148/J148 -> 389000 | L148: 7002000
A149: 130 | C149: Mebel tamirlash xizmati | D149: budjetdan tashqari | E149: Elektron do`kon | F149: №4349200 Lot261111145054003 | G149: Навоий вил. Формула уютамчж | H149: 301183666 | I149: xizmat | J149: 3 | K149: =+L149/J149 -> 1889000 | L149: 5667000
A150: 131 | C150: solyarka | D150: budjetdan tashqari | E150: PF 259 | F150: №236 Lot261191380050997 | G150: Навоий нефть базасиМЧЖ | H150: 200002538 | I150: t | J150: 0.1 | K150: =+L150/J150 -> 14703400 | L150: 1470340
A151: 132 | C151: set kabeli | D151: budjetdan tashqari | E151: Elektron do`kon | F151: №4457721 Lot261110085176787 | G151: YTT BAXROMJONOV BAXTIYOR BAXROMJONOVICH | H151: 33108882940026/ | I151: upakovka | J151: 2 | K151: =+L151/J151 -> 489800 | L151: 979600
A152: 133 | C152: qattiq disk | D152: budjetdan tashqari | E152: Elektron do`kon | F152: №4457778 Lot261110085176852 | G152: YTT XOLMUMINOV JAMSHID KUCHQOR O?G?LI | H152: 52307056080059/ | I152: dona | J152: 8 | K152: =+L152/J152 -> 2340000 | L152: 18720000
A153: 134 | C153: qattiq disk | D153: budjetdan tashqari | E153: Elektron do`kon | F153: №4457813 Lot261110085176893 | G153: YTT XOLMUMINOV JAMSHID KUCHQOR O?G?LI | H153: 52307056080059/ | I153: dona | J153: 6 | K153: =+L153/J153 -> 3449999 | L153: 20699994
A154: 135 | C154: qattiq disk | D154: budjetdan tashqari | E154: Elektron do`kon | F154: №4457802 Lot261110085176881 | G154: KAMERUN STAR UNIVERSAL MCHJ | H154: 306023726 | I154: dona | J154: 6 | K154: =+L154/J154 -> 3185000 | L154: 19110000
A155: 136 | C155: bordyur lentasi | D155: budjetdan tashqari | E155: Elektron do`kon | F155: №4462043 Lot261110085177661 | G155: ЧП ECOGREEN | H155: 305316449 | I155: dona | J155: 20 | K155: =+L155/J155 -> 336000.01 | L155: 6720000.2
A156: 137 | C156: Mebel tamirlash xizmati | D156: budjetdan tashqari | E156: Elektron do`kon | F156: №4770632 Lot261111145288642 | G156: Навоий вил. Формула уютамчж | H156: 301183666 | I156: dona | J156: 3 | K156: =+L156/J156 -> 2470000 | L156: 7410000
A157: 138 | C157: plyonka pechat uchun | D157: budjetdan tashqari | E157: Elektron do`kon | F157: №7579741.1.1 Lot262110087579741 | G157: yatt | H157: 30305954180033/ | I157: upakovka | J157: 40 | K157: =+L157/J157 -> 149000 | L157: 5960000
A158: 139 | C158: opganayzer | D158: budjetdan tashqari | E158: Elektron do`kon | F158: №7671770.1.1 Lot262110087671770 | G158: ООО KANS MIR NAVOIY | H158: 308067400 | I158: dona | J158: 65 | K158: =+L158/J158 -> 86000 | L158: 5590000
A159: 140 | C159: xlor | D159: budjetdan tashqari | E159: Elektron do`kon | F159: №4813029 Lot261110085336125 | G159: FITCONN MED MCHJ | H159: 310810387 | I159: dona | J159: 80 | K159: =+L159/J159 -> 5800 | L159: 464000
A160: 141 | C160: oshvijitel | D160: budjetdan tashqari | E160: Elektron do`kon | F160: №B1291938 Lot26311125131445 | G160: FALCON LINE хусусий корхонаси | H160: 306894560 | I160: dona | J160: 60 | K160: =+L160/J160 -> 11200 | L160: 672000
A161: 142 | C161: pol latta | D161: budjetdan tashqari | E161: Elektron do`kon | F161: №4813525 Lot261110085336616 | G161: JAVA COOPERATION MCHJ | H161: 311469604 | I161: dona | J161: 100 | K161: =+L161/J161 -> 9999 | L161: 999900
A162: 143 | C162: suyuq sovun | D162: budjetdan tashqari | E162: Elektron do`kon | F162: №B1291978 Lot26311125131560 | G162: JAVA COOPERATION MCHJ | H162: 311469604 | I162: dona | J162: 100 | K162: =+L162/J162 -> 4998 | L162: 499800
A163: 144 | C163: chek lenta | D163: budjetdan tashqari | E163: Elektron do`kon | F163: №4813865 Lot261110085336951 | G163: KAMOLAXON INVEST GROUP MCHJ | H163: 310870923 | I163: rulon | J163: 100 | K163: =+L163/J163 -> 49000 | L163: 4900000
A164: 145 | C164: chistol | D164: budjetdan tashqari | E164: Elektron do`kon | F164: №B1292111 Lot26311125131545 | G164: LEXON OFFICE MCHJ | H164: 312756610 | I164: xizmat | J164: 80 | K164: =+L164/J164 -> 5000 | L164: 400000
A165: 146 | C165: televizor ta'mirlash | D165: budjetdan tashqari | E165: Elektron do`kon | F165: №4879151 Lot261111145387017 | G165: ЯТТ Тошмуродова Замира Нурмановна | H165: 42406712350035/ | I165: komp | J165: 4 | K165: =+L165/J165 -> 750000 | L165: 3000000
A166: 147 | C166: foto polimer | D166: budjetdan tashqari | E166: Elektron do`kon | F166: №4817257 Lot261110085339769 | G166: BESH-SHOP MCHJ | H166: 312720940 | I166: komp | J166: 20 | K166: =+L166/J166 -> 260000 | L166: 5200000
A167: 148 | C167: pechat asosi | D167: budjetdan tashqari | E167: Elektron do`kon | F167: №4838697 Lot261110085362666 | G167: yatt | H167: 30305954180033/ | I167: komp | J167: 500 | K167: =+L167/J167 -> 39200 | L167: 19600000
A168: 149 | C168: gaz ballonlarini sinovdan o'tkazish | D168: budjetdan tashqari | E168: Elektron do`kon | F168: №4903049 Lot261111145407830 | G168: Х/К Nurafshon kelajak servis 2019 | H168: 306028884 | I168: komp | J168: 5 | K168: =+L168/J168 -> 600000 | L168: 3000000
A169: 150 | C169: avtotransport ta'mirlash xizmati | D169: budjetdan tashqari | E169: Elektron do`kon | F169: №7131248.1.1 Lot262110087131248 | G169: ЯККА DEG ТАРТИБДАГИ ТАДБИРКОР | H169: 30811825890014/ | I169: dona | J169: 1 | K169: =+L169/J169 -> 2978000 | L169: 2978000
A170: 151 | C170: temir quti | D170: budjetdan tashqari | E170: Elektron do`kon | F170: №4397965 Lot261110085109568 | G170: ENERGETIK SIFAT SAVDO MChJ | H170: 307130822 | I170: dona | J170: 1 | K170: =+L170/J170 -> 234000 | L170: 234000
A171: 152 | C171: tros | D171: budjetdan tashqari | E171: Elektron do`kon | F171: №4398137 Lot261110085109776 | G171: YTT ALMAXMATOV OLTINBEK DILSHOD O?G?LI | H171: 50804055500017/ | I171: m | J171: 70 | K171: =+L171/J171 -> 12000 | L171: 840000
A172: 153 | C172: plastmassa truba | D172: budjetdan tashqari | E172: Elektron do`kon | F172: №4398072 Lot261110085109699 | G172: BROKER 111 MCHJ | H172: 311705215 | I172: m | J172: 200 | K172: =+L172/J172 -> 4800 | L172: 960000
A173: 154 | C173: Kuchlanishi 1 kV dan oshmaydigan elektr zanjiri uzgichi | D173: budjetdan tashqari | E173: Elektron do`kon | F173: №4403981 Lot261110085109594 | G173: YTT MUXITDINOV TURSUNBOY AKBAR O?G?LI | H173: 53005045540036/ | I173: komp | J173: 1 | K173: =+L173/J173 -> 40000 | L173: 40000
A174: 155 | C174: izolenta | D174: budjetdan tashqari | E174: Elektron do`kon | F174: №4404008 Lot261110085109759 | G174: ООО INNOVATION PROJECT PROGRAMS | H174: 308564985 | I174: xizmat | J174: 10 | K174: =+L174/J174 -> 7000 | L174: 70000
A175: 156 | C175: kabel | D175: budjetdan tashqari | E175: Elektron do`kon | F175: №7223933.1.1 Lot262110087223933 | G175: ЯТТ АСЛОНОВ ХАЁТЖОН НЕЪМАТОВИЧ | H175: 513961058 | I175: m | J175: 160 | K175: =+L175/J175 -> 44700 | L175: 7152000
A176: 157 | C176: poligrafiya xizmati | D176: budjetdan tashqari | E176: Elektron do`kon | F176: №4430690 Lot261111145147000 | G176: ЧПPrint Copying Services | H176: 303401123 | I176: xizmat | J176: 6 | K176: =+L176/J176 -> 45000 | L176: 270000
A177: 158 | C177: temir truba | D177: budjetdan tashqari | E177: Elektron do`kon | F177: №4446691 Lot261110085158322 | G177: FEDEEX MCHJ | H177: 310929103 | I177: xizmat | J177: 10 | K177: =+L177/J177 -> 45000 | L177: 450000
A178: 159 | C178: moy filtri | D178: budjetdan tashqari | E178: Elektron do`kon | F178: №4461631 Lot261110085179528 | G178: BILLUR MOTORS NAVOIY MCHJ | H178: 310363026 | I178: xizmat | J178: 1 | K178: =+L178/J178 -> 55000 | L178: 55000
A179: 160 | C179: salon filtri | D179: budjetdan tashqari | E179: Elektron do`kon | F179: №4462251 Lot261110085179548 | G179: ULGURJI AVTO SERVIS MCHJ | H179: 311732325 | I179: xizmat | J179: 1 | K179: =+L179/J179 -> 199520 | L179: 199520
A180: 161 | C180: mator moyi | D180: budjetdan tashqari | E180: Elektron do`kon | F180: №4462249 Lot261110085179589 | G180: OQAR OTA HAMKOR | H180: 308964456 | I180: xizmat | J180: 4 | K180: =+L180/J180 -> 140000 | L180: 560000
A181: 162 | C181: avtotransport ta'mirlash xizmati | D181: budjetdan tashqari | E181: Elektron do`kon | F181: №4462248 Lot261111145179627 | G181: BILLUR MOTORS NAVOIY MAS`ULIYATI CHEKLANGAN JAMIYAT | H181: 310363026 | I181: xizmat | J181: 1 | K181: =+L181/J181 -> 1441050 | L181: 1441050
A182: 163 | C182: mator filtri | D182: budjetdan tashqari | E182: Elektron do`kon | F182: №4461965 Lot261110085179569 | G182: BILLUR MOTORS NAVOIY MAS`ULIYATI CHEKLANGAN JAMIYAT | H182: 310363026 | I182: xizmat | J182: 1 | K182: =+L182/J182 -> 210000 | L182: 210000
A183: 164 | C183: programmalash xizmati | D183: budjetdan tashqari | E183: Elektron do`kon | F183: №4461653 Lot261110085178624 | G183: IT WORKS MCHJ | H183: 306579176 | I183: xizmat | J183: 1 | K183: =+L183/J183 -> 16400000 | L183: 16400000
A184: 165 | C184: token kalit | D184: budjetdan tashqari | E184: Elektron do`kon | F184: №4463987 Lot261110085181119 | G184: ЯТТ РАХМОНОВ МАЪРУФ | H184: 581801277 | I184: xizmat | J184: 20 | K184: =+L184/J184 -> 302500 | L184: 6050000
A185: 166 | C185: malaka oshirish o'quv kursi | D185: budjetdan tashqari | E185: Elektron do`kon | F185: №МО/426 Lot261101174416475 | G185: ДАВЛАТ ХАВФСИЗЛИК ХИЗМАТИ АКАДЕМИЯСИ | H185: 202234169 | I185: xizmat | J185: 1 | K185: =+L185/J185 -> 2472000 | L185: 2472000
A186: 167 | C186: logotipli bayroq | D186: budjetdan tashqari | E186: Elektron do`kon | F186: №4775063 Lot261110085293805 | G186: СП XXI ASR ART MEDIA | H186: 308165460 | I186: xizmat | J186: 100 | K186: =+L186/J186 -> 15555 | L186: 1555500
A187: =+A186+1 -> 168 | C187: logotipli fudbolka | D187: budjetdan tashqari | E187: Elektron do`kon | F187: №4775138 Lot261110085293888 | G187: YTT RADJABOV BOYSUN BOTIROVICH | H187: 32401816130047/ | I187: xizmat | J187: 80 | K187: =+L187/J187 -> 59999 | L187: 4799920
A188: 169 | C188: logotipli kepka | D188: budjetdan tashqari | E188: Elektron do`kon | F188: №4775092 Lot261110085293851 | G188: YATT YULDASHEV AKMALJON | H188: 30508784310050/ | I188: xizmat | J188: 80 | K188: =+L188/J188 -> 35000 | L188: 2800000
A189: 170 | C189: poligrafiya xizmati | D189: budjetdan tashqari | E189: Elektron do`kon | F189: №4777695 Lot261111145296190 | G189: ЧПPrint Copying Services | H189: 303401123 | I189: xizmat | J189: 12 | K189: =+L189/J189 -> 65000 | L189: 780000
A190: 171 | C190: malaka oshirish o'quv kursi | D190: budjetdan tashqari | E190: Elektron do`kon | F190: №4783471 Lot261110085303197 | G190: Давлат тилида иш юритиш асосларини укитиш ва малака ошириш маркази | H190: 307387233 | I190: xizmat | J190: 1 | K190: =+L190/J190 -> 1443000 | L190: 1443000
